Cogmind - Beta 15 @@@ ROGUE MODE // 2025.05.14 @ 00:23:58 Player: Skysub Result: Destroyed by XB-MDG(R) with Subdweller Machine Gun Performance ------------- Evolutions (0) 0 Regions Visited (3) 600 Robots Destroyed (22) 110 Value Destroyed (483) 483 Prototype IDs (11) 220 Alien Tech Used (0) 0 Bonus (0) 0 TOTAL SCORE: 1413 Bonus ------- None Cogmind --------- Core Integrity 0/250 Matter 250/300 Energy 123/125 System Corruption 0% Temperature Cool (0) Movement Rolling (100) Location -10/Subcaves Parts ------- > --- POWER (1) -------- Light Ion Engine > --- PROPULSION (2) --- Compact Wheel > --- UTILITY (2) ------ Small Storage Unit Improved Terrain Scanner > --- WEAPON (2) ------- Light Assault Rifle Light Assault Rifle > --- INVENTORY (8) ---- Subdweller Power Source Arachnoskeleton Subdweller Optics Medium Laser Subdweller Beam Cannon Mining Laser Peak State ------------ > --- POWER ------------ Light Nuclear Core > --- PROPULSION ------- Light Treads Light Treads > --- UTILITY ---------- Small Storage Unit Improved Terrain Scanner > --- WEAPON ----------- Medium Laser Assault Rifle > --- INVENTORY -------- Light Ion Engine Light Treads Compact Wheel Terrain Scan Processor Targeting Computer Medium Laser Light Assault Rifle Mining Laser [Rating: 11] Favorites ----------- Power Light Ion Engine Engine Light Ion Engine Power Core Light Nuclear Core Propulsion Light Treads Treads Light Treads Wheel Compact Wheel Utility Small Storage Unit Device Improved Terrain Scanner Storage Small Storage Unit Weapon Assault Rifle Energy Gun Medium Laser Ballistic Gun Assault Rifle Special Weapon Mining Laser Build | -11 -10 -10 -10 ------- Run | Yrd Mat Min Sub Slots Evolved . | . . . . Power . | . . . . Propulsion . | . . . . Utility . | . . . . Weapon . | . . . . Parts Attached 18 | 7 . 7 4 Power 5 | 1 . 2 2 Engine 4 | 1 . 1 2 Core 1 | . . 1 . Reactor . | . . . . Propulsion 4 | 2 . 2 . Treads 3 | 2 . 1 . Leg . | . . . . Wheel 1 | . . 1 . Hover . | . . . . Flight . | . . . . Utility 3 | 2 . 1 . Device 2 | 1 . 1 . Storage 1 | 1 . . . Processor . | . . . . Hackware . | . . . . Protection . | . . . . Artifact . | . . . . Weapon 6 | 2 . 2 2 Energy Gun 1 | 1 . . . Energy Cannon . | . . . . Ballistic Gun 4 | 1 . 2 1 Ballistic Cannon . | . . . . Launcher . | . . . . Special Weapon 1 | . . . 1 Impact Weapon . | . . . . Slashing Weapon . | . . . . Piercing Weapon . | . . . . Special Melee Weapon . | . . . . Unidentified Prototypes . | . . . . Parts Lost 8 | . . 4 4 Power 2 | . . 1 1 Propulsion 3 | . . 1 2 Utility 1 | . . 1 . Weapon 2 | . . 1 1 Highest Loss Streak 4 | . . 3 4 To Critical Strikes . | . . . . Average Backups 6 | 3 5 7 6 Power . | . 1 . 1 Propulsion 1 | 1 2 1 . Utility 1 | . . 1 1 Weapon 2 | . 2 2 2 Tool/Special . | . . . . Unused Backups 7 | . . 1 6 Power . | . . . . Propulsion 2 | . . 1 1 Utility 3 | . . . 3 Weapon 2 | . . . 2 Tool/Special . | . . . . Average Slot Usage (%) 94 | . 100 95 90 Engine 11 | . 14 9 13 Core 2 | . . 4 . Treads 22 | . 28 27 11 Wheel 2 | . . . 8 Device 11 | . 14 10 14 Storage 14 | . 14 14 14 Energy Gun 7 | . 14 10 . Ballistic Gun 18 | . 14 17 21 Special Weapon 1 | . . . 6 Peak Build Rating 11 | 9 9 11 10 Average Rating 8 | 4 9 8 9 On Entrance 6 | . 9 9 9 Naked Turns . | . . . . Heaviest Build 15 | 15 15 15 13 Greatest Support 40 | 40 40 40 40 Greatest Overweight (x) . | . . . . Average Overweight (x) . | . . . . Largest Inventory Capacity 8 | 8 8 8 8 Average Capacity 7 | 7 8 8 8 Most Carried 8 | 5 8 8 8 Average Carried 7 | 3 5 7 7 Final Capacity 8 | 8 8 8 8 Final Carried 8 | 5 8 7 8 Class Distribution -------------------- 83% | Mutant 16% | Scavenger-Mutant Dominant Class ---------------- Mutant | -10/Materials Mutant | -10/Mines Scavenger-Mutant | -10/Subcaves Resources | -11 -10 -10 -10 ----------- Run | Yrd Mat Min Sub Matter Collected 544 | 126 31 299 88 Remotely . | . . . . Salvage Created 616 | 40 91 424 61 Parts 51 | 6 4 35 6 Haulers Intercepted . | . . . . Recyclers Shooed 1 | . . 1 . Parts Field Recycled . | . . . . Retrieved Matter . | . . . . Parts Self-Destructed 9 | . . . 9 Prevented . | . . . . Kills | -11 -10 -10 -10 ------- Run | Yrd Mat Min Sub Combat Hostiles Destroyed 17 | . 3 12 2 Guns 17 | . 3 12 2 Classes Destroyed 5 | 1 2 1 1 Builder 1 | . . 1 . Tunneler 4 | 2 . 2 . Swarmer 8 | . 2 6 . Grunt 7 | . 1 6 . Subdweller 2 | . . . 2 Best Kill Streak 3 | 2 2 3 2 Combat Bots Only 3 | . 2 3 2 Max Kills in Single Turn 2 | 1 1 2 1 Gunslinging 1 | . . 1 . Exploded . | . . . . Melee . | . . . . Uniques/NPCs Destroyed . | . . . . Combat | -11 -10 -10 -10 -------- Run | Yrd Mat Min Sub Hostile Shots Fired 103 | . 18 60 25 Missed 29 | . 7 12 10 Hits 74 | . 11 48 15 Projectile 74 | . 11 48 15 Critical Strikes 2 | . . 2 . Damage Taken 1080 | . 131 571 378 Core 259 | . 39 136 84 Absorbed by Shields . | . . . . Core Remaining (%) 100 | 100 . . . Volleys Fired 79 | 2 8 46 23 Largest 2 | 2 2 2 2 Hottest 100 | 70 70 70 100 Shots Fired 152 | 4 16 91 41 Gun 147 | 4 16 91 36 Cannon . | . . . . Launcher . | . . . . Special 5 | . . . 5 Kinetic 102 | 2 8 56 36 Thermal 50 | 2 8 35 5 Explosive . | . . . . Electromagnetic . | . . . . Robot Hit Streak 25 | 3 16 16 25 Robot Miss Streak 4 | . . 4 1 Penetration Max . | . . . . Secondary Targets 5 | . . 5 . Max Gunslinging Chain 1 | . . 1 . Shots Hit Robots 105 | 3 13 58 31 Core Hits 43 | 3 5 26 9 Critical Kills . | . . . . Critical Parts Destroyed . | . . . . Critical Strikes 3 | 1 . 2 . Burn 3 | 1 . 2 . Melee Attacks . | . . . . Impact . | . . . . Slashing . | . . . . Piercing . | . . . . Sneak Attacks . | . . . . Combat Hostiles . | . . . . Follow-up Attacks . | . . . . Damage Inflicted 1184 | 41 156 736 251 Guns 1178 | 39 156 732 251 Cannons . | . . . . Explosions . | . . . . Melee . | . . . . Ramming 6 | 2 . 4 . Kinetic 766 | 14 57 444 251 Thermal 412 | 25 99 288 . Explosive . | . . . . Electromagnetic . | . . . . Impact . | . . . . Slashing . | . . . . Piercing . | . . . . Highest Corruption . | . . . . Average Corruption . | . . . . Corruption Purged . | . . . . Corruption Blocked . | . . . . Overload Shots . | . . . . Overflow Damage . | . . . . Projectiles . | . . . . Explosions . | . . . . Melee . | . . . . Knockbacks . | . . . . Impact . | . . . . Kinetic . | . . . . Secondary . | . . . . Self-Inflicted Damage . | . . . . Shots . | . . . . Rammed 2 | 1 . 1 . Targets Rammed 2 | 1 . 1 . Kicked . | . . . . Crushed . | . . . . Highest Temperature 165 | 18 99 165 . Average Temperature 50 | 10 42 54 . Received Heat Transfer 393 | . 45 285 63 Siege Activations . | . . . . Martial Activations . | . . . . Shielding Activations . | . . . . Robots Disrupted . | . . . . Combat Hostiles . | . . . . Robots Corrupted . | . . . . Combat Hostiles . | . . . . Parts Fried . | . . . . Impact Corruptions . | . . . . Robots Melted . | . . . . Combat Hostiles . | . . . . Parts Melted 1 | . . . 1 Heat Transferred 1443 | 148 296 999 . Parts Sabotaged . | . . . . Parts Stolen . | . . . . Parts Stripped . | . . . . Power Chain Reactions . | . . . . Alert | -11 -10 -10 -10 ------- Run | Yrd Mat Min Sub Maximum Alert Level . | . . . . Low Security (%) 100 | 100 100 100 . Level 1 . | . . . . Level 2 . | . . . . Level 3 . | . . . . Level 4 . | . . . . Level 5 . | . . . . High Security . | . . . . Max Security . | . . . . Peak Influence 111 | 5 111 103 . Initial 33 | . 3 33 . Average 24 | 1 38 22 . Influence Increases 468 | 10 153 305 . Destroy 0b10 Robot/C 300 | . 60 240 . Destroy 0b10 Robot/NC 25 | 10 . 15 . Destroy Leader 70 | . 20 50 . Successful Hack 12 | . 12 . . Select Force Hacks 30 | . 30 . . Destroy Structure 1 | . 1 . . Lose Combat Pursuer 30 | . 30 . . Influence Decreases 468 | 5 73 384 6 Entered New Map 58 | . 2 52 4 Time Decay 386 | 5 71 308 2 Lost Part 24 | . . 24 . Squads Dispatched 2 | . 2 . . Investigation 1 | . 1 . . Extermination . | . . . . Reinforcement 1 | . 1 . . Assault . | . . . . Garrison . | . . . . Intercept . | . . . . Searches Triggered . | . . . . Construction Impeded . | . . . . Haulers Reinforced . | . . . . Active Scanning Responses . | . . . . Cargo Convoy Interrupts . | . . . . Stealth | -11 -10 -10 -10 --------- Run | Yrd Mat Min Sub Distress Signals 1 | . 1 . . Communications Jammed . | . . . . Distress Signals . | . . . . Times Spotted 29 | . 14 12 3 Peak Tracking Total 7 | . 7 3 2 Tactical Retreats 2 | . 2 . . Traps | -11 -10 -10 -10 ------- Run | Yrd Mat Min Sub Traps Triggered . | . . . . Indirectly . | . . . . Trap Hack Attempts . | . . . . Triggered . | . . . . Disarmed . | . . . . Reprogrammed . | . . . . Reused . | . . . . Traps Extracted . | . . . . Installed . | . . . . Triggered . | . . . . Machines | -11 -10 -10 -10 ---------- Run | Yrd Mat Min Sub Machines Disabled 1 | . . . 1 Max in Single Turn 1 | . . . 1 Machines Repaired . | . . . . Machines Dismantled . | . . . . Machines Sabotaged . | . . . . Overloaded Fab Kills . | . . . . Hacking | -11 -10 -10 -10 --------- Run | Yrd Mat Min Sub Machines Accessed 4 | . 3 . 1 Terminals 2 | . 2 . . Fabricators . | . . . . Repair Stations . | . . . . Recycling Units 1 | . 1 . . Scanalyzers . | . . . . Garrison Access . | . . . . Total Hacks 10 | . 9 . 1 Successful 7 | . 6 . 1 Failed 3 | . 3 . . Catastrophic . | . . . . Database Lockouts . | . . . . Manual 7 | . 7 . . Terminals 6 | . 6 . . Fabricators . | . . . . Repair Stations . | . . . . Recycling Units 3 | . 3 . . Scanalyzers . | . . . . Garrison Access . | . . . . Terminal Hacks 2 | . 1 . 1 Branch Access Points 1 | . 1 . . Proto ID Catalog 1 | . . . 1 Fabricator Hacks . | . . . . Repair Station Hacks . | . . . . Recycling Unit Hacks 2 | . 2 . . Report Inventory 1 | . 1 . . Retrieve Components 1 | . 1 . . Scanalyzer . | . . . . Garrison Access Hacks . | . . . . Unauthorized Hacks 3 | . 3 . . Terminals 2 | . 2 . . Botnet 2 | . 2 . . Fabricators . | . . . . Repair Stations . | . . . . Recycling Units 1 | . 1 . . Tunnel 1 | . 1 . . Scanalyzers . | . . . . Garrison Access . | . . . . Data Cores Recovered . | . . . . Used . | . . . . Hacking Detections 2 | . 2 . . Full Trace Events . | . . . . Feedback Events . | . . . . Feedback Blocked . | . . . . Robot Schematics Acquired . | . . . . Robots Built . | . . . . Authchips . | . . . . Time . | . . . . Total Robot Build Rating . | . . . . Part Schematics Acquired . | . . . . Parts Built . | . . . . Authchips . | . . . . Time . | . . . . Total Part Build Rating . | . . . . Parts Repaired . | . . . . Time . | . . . . Parts Recycled . | . . . . Recycled Matter . | . . . . Retrieved Matter . | . . . . Retrieved Components 2 | . 2 . . Parts Scanalyzed . | . . . . Part Schematics Acquired . | . . . . Parts Damaged . | . . . . Bothacking | -11 -10 -10 -10 ------------ Run | Yrd Mat Min Sub Used RIF Installer . | . . . . Robots Hacked . | . . . . Non-combat . | . . . . Combat . | . . . . Robot Hacks Applied . | . . . . Relay Couplers Released . | . . . . Fabnet Peak Effective % . | . . . . Robots Rewired . | . . . . Allies Hacked . | . . . . Hacks Repelled . | . . . . Allies | -11 -10 -10 -10 -------- Run | Yrd Mat Min Sub Total Allies . | . . . . Largest Group . | . . . . Highest-Rated Group . | . . . . Highest-Rated Ally . | . . . . Total Orders . | . . . . Ally Attacks . | . . . . Total Damage . | . . . . Kills . | . . . . Allies Corrupted . | . . . . Allies Melted . | . . . . Intel | -11 -10 -10 -10 ------- Run | Yrd Mat Min Sub Active Infowar (turns) 1744 | 9 233 886 616 Terrain 1744 | 9 233 886 616 Robot Analysis Total . | . . . . Derelict Logs Recovered . | . . . . Drone Launches . | . . . . Drone Recoveries . | . . . . Exploration | -11 -10 -10 -10 ------------- Run | Yrd Mat Min Sub Turns Passed 2134 | 73 233 1212 616 Spaces Moved 1210 | 38 123 618 431 Core 10 | 10 . . . Treads 900 | 28 123 618 131 Legs . | . . . . Wheels 300 | . . . 300 Hover . | . . . . Flight . | . . . . Fastest Speed 50 | 50 160 160 100 Average Speed 144 | 131 160 160 118 Slowest Speed 160 | 160 160 160 160 Overloaded Moves . | . . . . Propulsion Burnouts . | . . . . Robots Hopped . | . . . . Potential Cave-ins . | . . . . Cave-ins Triggered . | . . . . Exploration Rate (%) 41 | 3 39 95 28 Regions Visited 3 Branch Regions 2 Pre-discovered Areas 1 | . 1 . . Known Exits Taken 1 | . 1 . . Unknown Exits Taken 2 | 1 . 1 . Scrap Searched 1 | . . 1 . Spaces Dug 2 | . . . 2 Terrain Destroyed 2 | . . . 2 Melee . | . . . . Projectile 2 | . . . 2 AOE . | . . . . Terrain Rammed . | . . . . Walls Destroyed . | . . . . Machines Disabled . | . . . . Actions | -11 -10 -10 -10 --------- Run | Yrd Mat Min Sub Total 1442 | 54 143 752 493 Wait 111 | 1 10 74 26 Move 1207 | 37 122 617 431 Hop . | . . . . Pick Up 16 | 6 3 4 3 Fast Attach 8 | 6 . 1 1 Attach 6 | 1 . 3 2 Detach . | . . . . Swap 8 | . . 3 5 Drop 5 | . . 3 2 Fire 79 | 2 8 46 23 Melee . | . . . . Ram . | . . . . Kick . | . . . . Crush 2 | 1 . 1 . Escape Stasis . | . . . . Rewire . | . . . . Trap . | . . . . Miscellaneous . | . . . . Route ------- -11/Scrapyard -10/Materials (discovered 2 exits: [Mat] / *Min) -10/Mines (discovered 3 exits: [*Mat] / [*Exi] / *Sub) -10/Subcaves History --------- Turn | Location | Event 9 | -11/Scrapyard | Discovered new exit (range 15) 74 | -11/Scrapyard | Entered Materials 145 | -10/Materials | Identified exit to Mines 184 | -10/Materials | Discovered new exit (range 10) 307 | -10/Materials | Entered Mines 314 | -10/Mines | Build established: Mutant 501 | -10/Mines | Discovered new exit (range 9) 613 | -10/Mines | Discovered new exit (range 10) 796 | -10/Mines | Core integrity fell below 50% 1218 | -10/Mines | Lost 3 parts (1p1n1w) 1325 | -10/Mines | Deemed a non-threat by the Exiles lab entrance 1327 | -10/Mines | Discovered new exit (range 5) 1519 | -10/Mines | Entered Subcaves 1794 | -10/Subcaves | Lost 4 parts (1p2n1w) 1943 | -10/Subcaves | Visited 4L-MR0's lab 1955 | -10/Subcaves | Found Arachnoskeleton 2090 | -10/Subcaves | Build established: Scavenger-Mutant 2127 | -10/Subcaves | Core integrity fell below 20% 2135 | -10/Subcaves | Destroyed by XB-MDG(R) with Subdweller Machine Gun Last Messages --------------- Flightbrick Gun Armor Tower Shield Power Bank Rainbow Chip VL-GR5's Exoskeleton "Deathgrip" Powered Cannon 4L-MR0 mumbles to no one in particular: "Damn Subs sneaking around stealing my stuff." Testing Chamber breached. 4L-MR0 mumbles: "I'm surprised some of them are even willing to come in here given their fear of my usual visitors." Dropped Terrain Scan Processor. Dropped Targeting Computer. Acquired Arachnoskeleton. 4L-MR0 mumbles: "Who knows where that last prototype ended up, probably tossed aside somewhere as if it were useless junk..." Subatomizers dissect the Terrain Scan Processor. Map ----- +----------------------------------------------------+ | ?????????????????????????????## "" "#### | | ??????????????????????????????#########?## | | ??????????????????????????????#??????????# ## | | ????????????????????? ???????????????????# ## | | ?????????????????????????????????????????# ## # | | ???????????????????????????#??#????????#?## ###?# | | ?????????????????????????????????????????## # ### | | ????????????????????????????????????#?????# | | ?????????????????????????????????#???????## | | ????????????????????????????##?????????#??# ###### | | ?????????????????????????????????????????## ##?### | | ??????????????????"???####????#??????????# #### | | ??????????????????????#"" ##?????????????# | | ??????????????????????# #???#?????#???## ^ | | ????????????#???# ???## #????????#?????###### | | ????????????????# #### #??#????#??????????### | | ????????????????# ##???#????????#?#### ^ | | ????????????????# ##?##?###???????# | | ?????????? ????? ###### ##??#??###"^ | | ??????????????????? ## #???????### | | ????????????????#????? ?# R #???###???# | | ????????????? ??????????# #???## ##??## | | ????????????????????????# ##?## #???## | | ?????????? ????? ??????## #### #??# "#?#??# | | ???????????????????????# ####?### #### "###### | | ???????????????????? ??##@ #??????# ""### # | | ????????????????????????# ##?????## " ## | | ??????????????? ??????### #???????## "" ## | | ???????????????????????# ####????## """"" ###""" | | ??????????????????? ???# ## #### """""##?#""" | | ???????????????????????# #?# """####??""" | | ??????????????? ???? ??# #### """##?###""# | | ??????????????? ???????# ##?## """"## ## | | ??????????????? ??????####### """"" #?? | | ??????????????????????????# " " #?## | | ?????????????? ??? ???????# # ##?# | | ??????????????????????#??## ## ###### | | ????????????????#??????#??## ## ### ## | | ????????????????????????#??#### ## # | | ???????????????????#??????????###### ## | | ????????????????????????#??????????## ## | | ?????????????????????????????????#??# & | | ????????????????????????????#?#?????# | | ????????????????????????????????????# | | ????????????????????????????????????## ## | | ?????????????????????????????????????#### ### | | ????????????????????????????????????????## ?# | | ??????????????????????????????????????#?######## | | ??????????????????????????????????????######??## | | ??????????????????????????#?????#????#### #### | +----------------------------------------------------+ Best States ------------- Heat Dissipation 25 Energy Generation 15 Energy Capacity 250 Matter Stores 300 Matter Capacity 300 Sight Range 16 Terrain Scan Range 16 Terrain Scan Density 10 Evasion (%) 50 Recoil Reduction 2 Item Schematics ----------------- None Robot Schematics ------------------ None Fabricated ------------ Nothing Repaired ---------- Nothing Alien Tech Used ----------------- None Achievements -------------- None Challenges ------------ None Game ------ Seed ReflexDecoderStorage Manual? 0 Play Time 00:11:00 Cumulative 82.4 hours Start 2025.05.14 @ 00:12:51 End 2025.05.14 @ 00:23:58 Sessions 1 Manual Loads 0 Difficulty Rogue Special Mode None Game No. 81 Rogue 81 Adventurer 0 Explorer 0 Win Type - Total 1 Types 1/0/0/0/0/0/0/0/0/0 Lore% 46 Gallery% 49 Achievement% 44 Wizard Run 0 Options --------- Layout 1 ASCII 0 Keyboard 1 Movement Numpad Keybinds 0 Fullscreen 1 Font 32/SmallcapsGlow Map View 50x35 Zoom Use 0% Tactical HUD 0 Map Filters NONE Filters NONE Steam 1 RUN: 60b2a4a2-d3a1-44e6-a51b-362e7e99a4f0